[Event "Titled Tuesday Blitz April 05 Early 2022"]
[White "Oparin, Grigoriy"]
[Black "Harshavardhan G B"]
[WhiteFideId "24125890"]
[BlackFideId "25059009"]
[WhiteElo "2665"]
[BlackElo "1831"]
[Result "1-0"]
[Round "02"]
[TimeControl "180+1"]
[Date "2022.04.05"]
[WhiteClock "0:01:50"]
[BlackClock "0:01:17"]

1. e4 {[%clk 0:03:00]}  e6 {[%clk 0:02:59]} 2. d4 {[%clk 0:03:00]}  d5 {[%clk 0:03:00]} 3. Nc3 {[%clk 0:03:01]}  Nf6 {[%clk 0:02:59]} 4. e5 {[%clk 0:03:01]}  Nfd7 {[%clk 0:02:59]} 5. f4 {[%clk 0:03:02]}  c5 {[%clk 0:02:59]} 6. Nf3 {[%clk 0:03:03]}  Nc6 {[%clk 0:02:59]} 7. Be3 {[%clk 0:03:02]}  Qb6 {[%clk 0:03:00]} 8. Na4 {[%clk 0:03:01]}  Qc7 {[%clk 0:02:59]} 9. c3 {[%clk 0:02:57]}  cxd4 {[%clk 0:02:57]} 10. cxd4 {[%clk 0:02:56]}  Bb4+ {[%clk 0:02:51]} 11. Nc3 {[%clk 0:02:54]}  f6 {[%clk 0:02:46]} 12. Bd3 {[%clk 0:02:54]}  O-O {[%clk 0:02:44]} 13. O-O {[%clk 0:02:54]}  a6 {[%clk 0:02:36]} 14. f5 {[%clk 0:02:52]}  Nb6 {[%clk 0:02:25]} 15. exf6 {[%clk 0:02:16]}  Rxf6 {[%clk 0:02:22]} 16. fxe6 {[%clk 0:02:14]}  h6 {[%clk 0:01:59]} 17. Ng5 {[%clk 0:01:51]}  hxg5 {[%clk 0:01:18]} 18. Qh5 {[%clk 0:01:51]}  Rh6 {[%clk 0:01:17]} 19. Qe8+ {[%clk 0:01:50]} 1-0


[Site "https://www.chess.com"]

[Event "Titled Tuesday Blitz April 05 Early 2022"]
[White "Ozer, Omer Faruk"]
[Black "Dreev, Aleksey"]
[WhiteFideId "6354564"]
[BlackFideId "4100107"]
[WhiteElo "2050"]
[BlackElo "2625"]
[Result "0-1"]
[Round "02"]
[TimeControl "180+1"]
[Date "2022.04.05"]
[WhiteClock "0:00:45"]
[BlackClock "0:00:52"]

1. e4 {[%clk 0:03:00]}  c5 {[%clk 0:02:59]} 2. Nf3 {[%clk 0:02:59]}  e6 {[%clk 0:03:00]} 3. d3 {[%clk 0:02:58]}  d5 {[%clk 0:02:58]} 4. Nbd2 {[%clk 0:02:58]}  Nc6 {[%clk 0:02:58]} 5. g3 {[%clk 0:02:58]}  g5 {[%clk 0:02:56]} 6. exd5 {[%clk 0:02:55]}  exd5 {[%clk 0:02:56]} 7. Bg2 {[%clk 0:02:55]}  Bg7 {[%clk 0:02:55]} 8. O-O {[%clk 0:02:54]}  h6 {[%clk 0:02:51]} 9. c4 {[%clk 0:02:52]}  Nge7 {[%clk 0:02:48]} 10. Rb1 {[%clk 0:02:45]}  O-O {[%clk 0:02:47]} 11. a3 {[%clk 0:02:45]}  Bf5 {[%clk 0:02:46]} 12. cxd5 {[%clk 0:02:41]}  Nxd5 {[%clk 0:02:37]} 13. Qb3 {[%clk 0:02:26]}  Nb6 {[%clk 0:02:34]} 14. Ne4 {[%clk 0:02:03]}  c4 {[%clk 0:02:33]} 15. Qb5 {[%clk 0:02:03]}  Bg6 {[%clk 0:02:21]} 16. Nfxg5 {[%clk 0:01:58]}  Qxd3 {[%clk 0:02:06]} 17. Be3 {[%clk 0:01:44]}  hxg5 {[%clk 0:02:03]} 18. Nxg5 {[%clk 0:01:45]}  c3 {[%clk 0:01:54]} 19. bxc3 {[%clk 0:01:39]}  Qxb5 {[%clk 0:01:53]} 20. Rxb5 {[%clk 0:01:40]}  Bd3 {[%clk 0:01:53]} 21. Rc5 {[%clk 0:01:34]}  Bxf1 {[%clk 0:01:52]} 22. Bxf1 {[%clk 0:01:35]}  Rfe8 {[%clk 0:01:46]} 23. Rf5 {[%clk 0:01:28]}  Rxe3 {[%clk 0:01:18]} 24. fxe3 {[%clk 0:01:27]}  Ne5 {[%clk 0:01:19]} 25. c4 {[%clk 0:01:23]}  Rc8 {[%clk 0:01:17]} 26. Bg2 {[%clk 0:01:08]}  Nbxc4 {[%clk 0:01:10]} 27. Bxb7 {[%clk 0:01:08]}  Rc7 {[%clk 0:01:11]} 28. Ba6 {[%clk 0:00:58]}  Nxe3 {[%clk 0:01:09]} 29. Rf4 {[%clk 0:00:58]}  N5g4 {[%clk 0:01:03]} 30. h3 {[%clk 0:00:44]}  Rc1+ {[%clk 0:01:00]} 31. Bf1 {[%clk 0:00:45]}  Bh6 {[%clk 0:00:52]} 0-1


[Site "https://www.chess.com"]

[Event "Titled Tuesday Blitz April 05 Early 2022"]
[White "Pajeken, Jakob Leon"]
[Black "Jain, Naveen"]
[WhiteFideId "12942839"]
[BlackFideId "5003970"]
[WhiteElo "2351"]
[BlackElo "2036"]
[Result "1-0"]
[Round "02"]
[TimeControl "180+1"]
[Date "2022.04.05"]
[WhiteClock "0:01:45"]
[BlackClock "0:01:32"]

1. Nf3 {[%clk 0:02:47]}  d5 {[%clk 0:02:57]} 2. c4 {[%clk 0:02:47]}  e6 {[%clk 0:02:57]} 3. d4 {[%clk 0:02:46]}  Nf6 {[%clk 0:02:56]} 4. g3 {[%clk 0:02:46]}  b6 {[%clk 0:02:55]} 5. Bg2 {[%clk 0:02:45]}  Bb7 {[%clk 0:02:55]} 6. Ne5 {[%clk 0:02:44]}  Be7 {[%clk 0:02:54]} 7. O-O {[%clk 0:02:43]}  O-O {[%clk 0:02:52]} 8. Bf4 {[%clk 0:02:42]}  Nc6 {[%clk 0:02:52]} 9. Nc3 {[%clk 0:02:41]}  Nxe5 {[%clk 0:02:48]} 10. dxe5 {[%clk 0:02:41]}  Nh5 {[%clk 0:02:37]} 11. cxd5 {[%clk 0:02:34]}  Nxf4 {[%clk 0:02:34]} 12. gxf4 {[%clk 0:02:35]}  exd5 {[%clk 0:02:34]} 13. Nxd5 {[%clk 0:02:34]}  Bxd5 {[%clk 0:02:27]} 14. Qxd5 {[%clk 0:02:33]}  Qxd5 {[%clk 0:02:24]} 15. Bxd5 {[%clk 0:02:34]}  Rad8 {[%clk 0:02:22]} 16. Rfd1 {[%clk 0:02:34]}  Kh8 {[%clk 0:02:20]} 17. Kg2 {[%clk 0:02:32]}  f6 {[%clk 0:02:19]} 18. exf6 {[%clk 0:02:31]}  Bxf6 {[%clk 0:02:18]} 19. Rab1 {[%clk 0:02:25]}  c5 {[%clk 0:02:16]} 20. e3 {[%clk 0:02:25]}  a5 {[%clk 0:02:15]} 21. a4 {[%clk 0:02:24]}  g5 {[%clk 0:02:07]} 22. fxg5 {[%clk 0:02:21]}  Bxg5 {[%clk 0:02:06]} 23. Rbc1 {[%clk 0:02:15]}  Rf6 {[%clk 0:02:05]} 24. Rc4 {[%clk 0:02:14]}  Rg6 {[%clk 0:02:04]} 25. Rg4 {[%clk 0:02:08]}  Rg7 {[%clk 0:01:54]} 26. b3 {[%clk 0:01:58]}  h5 {[%clk 0:01:53]} 27. Rg3 {[%clk 0:01:57]}  Kh7 {[%clk 0:01:50]} 28. Be4+ {[%clk 0:01:54]}  Kh6 {[%clk 0:01:48]} 29. Rxd8 {[%clk 0:01:53]}  Bxd8 {[%clk 0:01:48]} 30. Rxg7 {[%clk 0:01:54]}  Kxg7 {[%clk 0:01:48]} 31. Kf3 {[%clk 0:01:52]}  Kf6 {[%clk 0:01:48]} 32. h4 {[%clk 0:01:45]}  Ke5 {[%clk 0:01:48]} 33. Bg6 {[%clk 0:01:45]}  Bxh4 {[%clk 0:01:43]} 34. Bxh5 {[%clk 0:01:45]}  Bf6 {[%clk 0:01:40]} 35. Bf7 {[%clk 0:01:42]}  Bg7 {[%clk 0:01:39]} 36. Ke2 {[%clk 0:01:41]}  Bh6 {[%clk 0:01:37]} 37. f4+ {[%clk 0:01:41]}  Bxf4 {[%clk 0:01:36]} 38. exf4+ {[%clk 0:01:42]}  Kxf4 {[%clk 0:01:37]} 39. Kd3 {[%clk 0:01:41]}  Kf3 {[%clk 0:01:36]} 40. Kc4 {[%clk 0:01:41]}  Ke3 {[%clk 0:01:36]} 41. Kb5 {[%clk 0:01:42]}  Kd3 {[%clk 0:01:36]} 42. Kxb6 {[%clk 0:01:42]}  Kc3 {[%clk 0:01:35]} 43. Bc4 {[%clk 0:01:43]}  Kb4 {[%clk 0:01:35]} 44. Ka6 {[%clk 0:01:43]}  Ka3 {[%clk 0:01:32]} 45. Kxa5 {[%clk 0:01:44]}  Kb2 {[%clk 0:01:32]} 46. Kb5 {[%clk 0:01:45]} 1-0


[Site "https://www.chess.com"]

[Event "Titled Tuesday Blitz April 05 Early 2022"]
[White "Perez Rodriguez, Jennifer"]
[Black "nobodyperfect13"]
[WhiteFideId "3507831"]
[WhiteElo "2170"]
[BlackElo "1907"]
[Result "0-1"]
[Round "02"]
[TimeControl "180+1"]
[Date "2022.04.05"]
[WhiteClock "0:00:00"]
[BlackClock "0:01:32"]

1. e4 {[%clk 0:03:00]}  c5 {[%clk 0:02:59]} 2. Nf3 {[%clk 0:02:59]}  e6 {[%clk 0:02:59]} 3. c3 {[%clk 0:02:59]}  Nf6 {[%clk 0:02:59]} 4. e5 {[%clk 0:02:59]}  Nd5 {[%clk 0:02:50]} 5. d4 {[%clk 0:02:59]}  cxd4 {[%clk 0:02:50]} 6. cxd4 {[%clk 0:02:58]}  d6 {[%clk 0:02:49]} 7. Bc4 {[%clk 0:02:56]}  dxe5 {[%clk 0:02:43]} 8. dxe5 {[%clk 0:02:52]}  Nc6 {[%clk 0:02:38]} 9. O-O {[%clk 0:02:48]}  Be7 {[%clk 0:02:39]} 10. Qe2 {[%clk 0:02:42]}  O-O {[%clk 0:02:39]} 11. Bd2 {[%clk 0:02:40]}  a6 {[%clk 0:02:39]} 12. Nc3 {[%clk 0:02:36]}  b5 {[%clk 0:02:35]} 13. Bd3 {[%clk 0:02:26]}  Nxc3 {[%clk 0:02:27]} 14. Bxc3 {[%clk 0:02:25]}  Bb7 {[%clk 0:02:26]} 15. Rad1 {[%clk 0:02:19]}  Qc7 {[%clk 0:02:24]} 16. Rfe1 {[%clk 0:02:15]}  Rfd8 {[%clk 0:02:24]} 17. Qe4 {[%clk 0:02:10]}  g6 {[%clk 0:02:23]} 18. Qe3 {[%clk 0:01:21]}  Nb4 {[%clk 0:02:19]} 19. Bb1 {[%clk 0:01:18]}  Rxd1 {[%clk 0:02:19]} 20. Rxd1 {[%clk 0:01:18]}  Rd8 {[%clk 0:02:19]} 21. Re1 {[%clk 0:01:16]}  Nd5 {[%clk 0:02:16]} 22. Qc1 {[%clk 0:00:53]}  Nxc3 {[%clk 0:02:15]} 23. bxc3 {[%clk 0:00:52]}  Bxf3 {[%clk 0:02:09]} 24. gxf3 {[%clk 0:00:52]}  Rc8 {[%clk 0:02:07]} 25. Be4 {[%clk 0:00:43]}  Qxc3 {[%clk 0:02:05]} 26. Qxc3 {[%clk 0:00:39]}  Rxc3 {[%clk 0:02:05]} 27. Rd1 {[%clk 0:00:34]}  Bg5 {[%clk 0:02:03]} 28. Kg2 {[%clk 0:00:25]}  Bf4 {[%clk 0:02:03]} 29. Rd6 {[%clk 0:00:23]}  Ra3 {[%clk 0:02:02]} 30. Bb7 {[%clk 0:00:19]}  a5 {[%clk 0:02:00]} 31. Ba6 {[%clk 0:00:11]}  b4 {[%clk 0:01:55]} 32. Bc4 {[%clk 0:00:07]}  Bxe5 {[%clk 0:01:51]} 33. Rd8+ {[%clk 0:00:08]}  Kg7 {[%clk 0:01:51]} 34. Rd7 {[%clk 0:00:08]}  Rc3 {[%clk 0:01:50]} 35. Bxe6 {[%clk 0:00:07]}  Rc2 {[%clk 0:01:44]} 36. Bxf7 {[%clk 0:00:06]}  Kf6 {[%clk 0:01:41]} 37. Bb3 {[%clk 0:00:06]}  Rb2 {[%clk 0:01:40]} 38. Rb7 {[%clk 0:00:05]}  Bd4 {[%clk 0:01:38]} 39. Rxh7 {[%clk 0:00:04]}  Rxf2+ {[%clk 0:01:36]} 40. Kg3 {[%clk 0:00:04]}  Rb2 {[%clk 0:01:36]} 41. Rf7+ {[%clk 0:00:04]}  Kg5 {[%clk 0:01:34]} 42. h4+ {[%clk 0:00:05]}  Kh6 {[%clk 0:01:35]} 43. Ra7 {[%clk 0:00:00]}  Bxa7 {[%clk 0:01:32]} 0-1


[Site "https://www.chess.com"]

[Event "Titled Tuesday Blitz April 05 Early 2022"]
[White "Pesotskiy, Mikhail"]
[Black "Hernandez Bermudez, Ulises Eduardo"]
[WhiteFideId "34164453"]
[BlackFideId "3902510"]
[WhiteElo "2010"]
[BlackElo "2056"]
[Result "1-0"]
[Round "02"]
[TimeControl "180+1"]
[Date "2022.04.05"]
[WhiteClock "0:01:01"]
[BlackClock "0:00:01"]

1. d4 {[%clk 0:02:59]}  Nf6 {[%clk 0:02:59]} 2. c4 {[%clk 0:03:00]}  g6 {[%clk 0:02:58]} 3. Nc3 {[%clk 0:02:52]}  Bg7 {[%clk 0:02:58]} 4. e4 {[%clk 0:02:51]}  d6 {[%clk 0:02:58]} 5. f3 {[%clk 0:02:50]}  O-O {[%clk 0:02:57]} 6. Be3 {[%clk 0:02:51]}  e5 {[%clk 0:02:57]} 7. d5 {[%clk 0:02:49]}  Nbd7 {[%clk 0:02:56]} 8. Bd3 {[%clk 0:02:47]}  Ne8 {[%clk 0:02:45]} 9. Nge2 {[%clk 0:02:46]}  f5 {[%clk 0:02:44]} 10. exf5 {[%clk 0:02:47]}  gxf5 {[%clk 0:02:44]} 11. Qd2 {[%clk 0:02:48]}  Nc5 {[%clk 0:02:26]} 12. Bc2 {[%clk 0:02:45]}  a5 {[%clk 0:02:24]} 13. O-O-O {[%clk 0:02:39]}  a4 {[%clk 0:02:13]} 14. Kb1 {[%clk 0:02:36]}  a3 {[%clk 0:01:50]} 15. b3 {[%clk 0:02:32]}  f4 {[%clk 0:01:42]} 16. Bxc5 {[%clk 0:02:31]}  dxc5 {[%clk 0:01:41]} 17. Ne4 {[%clk 0:02:32]}  b6 {[%clk 0:01:36]} 18. N2c3 {[%clk 0:02:26]}  Nd6 {[%clk 0:01:32]} 19. Nxd6 {[%clk 0:02:23]}  cxd6 {[%clk 0:01:33]} 20. Be4 {[%clk 0:02:15]}  Bd7 {[%clk 0:01:23]} 21. Qd3 {[%clk 0:02:15]}  Qh4 {[%clk 0:01:16]} 22. Rdg1 {[%clk 0:02:13]}  Rab8 {[%clk 0:00:49]} 23. g3 {[%clk 0:02:11]}  Qh6 {[%clk 0:00:47]} 24. Rg2 {[%clk 0:02:02]}  Bh3 {[%clk 0:00:42]} 25. Rgg1 {[%clk 0:02:01]}  Bd7 {[%clk 0:00:40]} 26. g4 {[%clk 0:01:55]}  Qh4 {[%clk 0:00:38]} 27. Qe2 {[%clk 0:01:51]}  Rf7 {[%clk 0:00:32]} 28. Qe1 {[%clk 0:01:49]}  Qxe1+ {[%clk 0:00:29]} 29. Rxe1 {[%clk 0:01:49]}  b5 {[%clk 0:00:28]} 30. cxb5 {[%clk 0:01:35]}  Bxb5 {[%clk 0:00:28]} 31. Kc2 {[%clk 0:01:27]}  c4 {[%clk 0:00:22]} 32. bxc4 {[%clk 0:01:28]}  Bxc4 {[%clk 0:00:22]} 33. Rb1 {[%clk 0:01:29]}  Rfb7 {[%clk 0:00:22]} 34. Rxb7 {[%clk 0:01:27]}  Rxb7 {[%clk 0:00:22]} 35. Rb1 {[%clk 0:01:27]}  Rxb1 {[%clk 0:00:22]} 36. Kxb1 {[%clk 0:01:28]}  Bf6 {[%clk 0:00:17]} 37. Kc2 {[%clk 0:01:28]}  Bh4 {[%clk 0:00:17]} 38. Bd3 {[%clk 0:01:29]}  Bxd3+ {[%clk 0:00:15]} 39. Kxd3 {[%clk 0:01:30]}  Be1 {[%clk 0:00:15]} 40. Nb5 {[%clk 0:01:27]}  Bb4 {[%clk 0:00:15]} 41. Ke4 {[%clk 0:01:24]}  Kf7 {[%clk 0:00:14]} 42. h4 {[%clk 0:01:16]}  Kf6 {[%clk 0:00:10]} 43. Kd3 {[%clk 0:01:10]}  Bc5 {[%clk 0:00:09]} 44. Nc3 {[%clk 0:01:07]}  Ke7 {[%clk 0:00:06]} 45. Ne4 {[%clk 0:01:07]}  Bb4 {[%clk 0:00:07]} 46. Kc4 {[%clk 0:01:04]}  Be1 {[%clk 0:00:07]} 47. h5 {[%clk 0:01:03]}  Ba5 {[%clk 0:00:03]} 48. Kb3 {[%clk 0:01:04]}  Bb6 {[%clk 0:00:03]} 49. Kxa3 {[%clk 0:01:04]}  Kd8 {[%clk 0:00:02]} 50. Kb3 {[%clk 0:01:02]}  Kc7 {[%clk 0:00:01]} 51. Kc4 {[%clk 0:01:01]}  h6 {[%clk 0:00:02]} 52. Kb5 {[%clk 0:01:00]}  Bg1 {[%clk 0:00:01]} 53. a4 {[%clk 0:01:00]}  Kb7 {[%clk 0:00:01]} 54. a5 {[%clk 0:01:01]} 1-0


[Site "https://www.chess.com"]

[Event "Titled Tuesday Blitz April 05 Early 2022"]
[White "Piesik, Piotr"]
[Black "Bintang, Rasyid A. Hidayat"]
[WhiteFideId "1136194"]
[BlackFideId "7105355"]
[WhiteElo "2190"]
[BlackElo "2386"]
[Result "1-0"]
[Round "02"]
[TimeControl "180+1"]
[Date "2022.04.05"]
[WhiteClock "0:01:33"]
[BlackClock "0:00:41"]

1. Nf3 {[%clk 0:03:00]}  g6 {[%clk 0:02:58]} 2. g3 {[%clk 0:03:01]}  Bg7 {[%clk 0:02:58]} 3. d4 {[%clk 0:03:01]}  d5 {[%clk 0:02:57]} 4. Bg2 {[%clk 0:03:01]}  Nf6 {[%clk 0:02:57]} 5. O-O {[%clk 0:03:01]}  O-O {[%clk 0:02:58]} 6. c4 {[%clk 0:03:02]}  dxc4 {[%clk 0:02:59]} 7. Na3 {[%clk 0:03:02]}  c3 {[%clk 0:02:50]} 8. bxc3 {[%clk 0:03:03]}  Ne4 {[%clk 0:02:46]} 9. Bb2 {[%clk 0:02:59]}  c5 {[%clk 0:02:45]} 10. Qb3 {[%clk 0:02:53]}  Nc6 {[%clk 0:02:42]} 11. Rfd1 {[%clk 0:02:51]}  cxd4 {[%clk 0:02:39]} 12. cxd4 {[%clk 0:02:51]}  Na5 {[%clk 0:02:27]} 13. Qe3 {[%clk 0:02:49]}  Nd6 {[%clk 0:02:25]} 14. Rac1 {[%clk 0:02:46]}  Be6 {[%clk 0:02:23]} 15. Ra1 {[%clk 0:02:33]}  Nac4 {[%clk 0:02:21]} 16. Nxc4 {[%clk 0:02:33]}  Nxc4 {[%clk 0:02:21]} 17. Qc3 {[%clk 0:02:29]}  Nxb2 {[%clk 0:02:20]} 18. Qxb2 {[%clk 0:02:29]}  Bd5 {[%clk 0:02:20]} 19. e3 {[%clk 0:02:27]}  Rc8 {[%clk 0:02:17]} 20. Nd2 {[%clk 0:02:26]}  Bxg2 {[%clk 0:02:17]} 21. Kxg2 {[%clk 0:02:27]}  b6 {[%clk 0:02:15]} 22. Rac1 {[%clk 0:02:21]}  Qd5+ {[%clk 0:02:14]} 23. Nf3 {[%clk 0:02:18]}  g5 {[%clk 0:02:03]} 24. Qb3 {[%clk 0:02:16]}  Qe4 {[%clk 0:01:56]} 25. Rxc8 {[%clk 0:02:15]}  Rxc8 {[%clk 0:01:55]} 26. Qd3 {[%clk 0:02:07]}  Qxd3 {[%clk 0:01:46]} 27. Rxd3 {[%clk 0:02:08]}  g4 {[%clk 0:01:41]} 28. Ne1 {[%clk 0:02:02]}  Rc1 {[%clk 0:01:33]} 29. Kf1 {[%clk 0:02:02]}  e6 {[%clk 0:01:29]} 30. Ra3 {[%clk 0:02:02]}  Bf8 {[%clk 0:01:26]} 31. Rb3 {[%clk 0:01:57]}  a5 {[%clk 0:01:20]} 32. Ke2 {[%clk 0:01:55]}  Bb4 {[%clk 0:01:17]} 33. Nd3 {[%clk 0:01:55]}  Rc2+ {[%clk 0:01:17]} 34. Kf1 {[%clk 0:01:55]}  Rxa2 {[%clk 0:01:02]} 35. Nxb4 {[%clk 0:01:54]}  axb4 {[%clk 0:01:02]} 36. Rxb4 {[%clk 0:01:55]}  Ra6 {[%clk 0:00:59]} 37. Rb5 {[%clk 0:01:53]}  f5 {[%clk 0:00:55]} 38. d5 {[%clk 0:01:51]}  Kf7 {[%clk 0:00:55]} 39. dxe6+ {[%clk 0:01:48]}  Kxe6 {[%clk 0:00:56]} 40. Kg2 {[%clk 0:01:47]}  h5 {[%clk 0:00:54]} 41. h3 {[%clk 0:01:47]}  Kf6 {[%clk 0:00:50]} 42. h4 {[%clk 0:01:46]}  Kg6 {[%clk 0:00:46]} 43. Kf1 {[%clk 0:01:44]}  Ra1+ {[%clk 0:00:43]} 44. Kg2 {[%clk 0:01:44]}  Ra5 {[%clk 0:00:43]} 45. Rxb6+ {[%clk 0:01:42]}  Kg7 {[%clk 0:00:44]} 46. Rb4 {[%clk 0:01:39]}  Kg6 {[%clk 0:00:44]} 47. Rf4 {[%clk 0:01:38]}  Re5 {[%clk 0:00:43]} 48. Kf1 {[%clk 0:01:38]}  Re4 {[%clk 0:00:42]} 49. Rxe4 {[%clk 0:01:29]}  fxe4 {[%clk 0:00:42]} 50. Ke2 {[%clk 0:01:30]}  Kf5 {[%clk 0:00:42]} 51. Kd2 {[%clk 0:01:30]}  Ke5 {[%clk 0:00:43]} 52. Kc3 {[%clk 0:01:30]}  Kd5 {[%clk 0:00:41]} 53. Kb4 {[%clk 0:01:31]}  Kd6 {[%clk 0:00:40]} 54. Kc4 {[%clk 0:01:31]}  Ke5 {[%clk 0:00:40]} 55. Kc5 {[%clk 0:01:32]}  Ke6 {[%clk 0:00:40]} 56. Kd4 {[%clk 0:01:32]}  Kf5 {[%clk 0:00:41]} 57. Kd5 {[%clk 0:01:33]} 1-0


[Site "https://www.chess.com"]

[Event "Titled Tuesday Blitz April 05 Early 2022"]
[White "Piliczewski, Bogusz"]
[Black "Kouskoutis, Georgios-Alexandros"]
[WhiteFideId "1104144"]
[BlackFideId "4234049"]
[WhiteElo "1896"]
[BlackElo "2130"]
[Result "0-1"]
[Round "02"]
[TimeControl "180+1"]
[Date "2022.04.05"]
[WhiteClock "0:00:01"]
[BlackClock "0:00:03"]

1. d4 {[%clk 0:03:00]}  Nf6 {[%clk 0:03:00]} 2. Nf3 {[%clk 0:02:59]}  d5 {[%clk 0:03:00]} 3. c4 {[%clk 0:02:57]}  e6 {[%clk 0:02:59]} 4. Bg5 {[%clk 0:02:56]}  Be7 {[%clk 0:02:55]} 5. Nc3 {[%clk 0:02:54]}  dxc4 {[%clk 0:02:49]} 6. e3 {[%clk 0:02:53]}  a6 {[%clk 0:02:35]} 7. a4 {[%clk 0:02:51]}  O-O {[%clk 0:02:12]} 8. Bxc4 {[%clk 0:02:51]}  Nc6 {[%clk 0:02:13]} 9. O-O {[%clk 0:02:49]}  b6 {[%clk 0:02:08]} 10. Qe2 {[%clk 0:02:42]}  Bb7 {[%clk 0:01:49]} 11. Rfd1 {[%clk 0:02:42]}  Nb4 {[%clk 0:01:45]} 12. Ne5 {[%clk 0:02:34]}  Nfd5 {[%clk 0:01:29]} 13. Bxe7 {[%clk 0:02:30]}  Qxe7 {[%clk 0:01:30]} 14. e4 {[%clk 0:02:17]}  Nf6 {[%clk 0:01:21]} 15. f3 {[%clk 0:02:14]}  Rfd8 {[%clk 0:01:20]} 16. Rd2 {[%clk 0:01:47]}  Nd7 {[%clk 0:01:02]} 17. Nd3 {[%clk 0:01:21]}  Nxd3 {[%clk 0:00:51]} 18. Rxd3 {[%clk 0:01:20]}  c5 {[%clk 0:00:34]} 19. Rad1 {[%clk 0:01:15]}  g6 {[%clk 0:00:19]} 20. f4 {[%clk 0:01:04]}  cxd4 {[%clk 0:00:15]} 21. Rxd4 {[%clk 0:01:03]}  e5 {[%clk 0:00:14]} 22. fxe5 {[%clk 0:00:41]}  Nxe5 {[%clk 0:00:15]} 23. Bd5 {[%clk 0:00:34]}  Qc5 {[%clk 0:00:04]} 24. Kh1 {[%clk 0:00:32]}  Bxd5 {[%clk 0:00:04]} 25. Rxd5 {[%clk 0:00:30]}  Rxd5 {[%clk 0:00:04]} 26. Rxd5 {[%clk 0:00:30]}  Qe7 {[%clk 0:00:04]} 27. Qd2 {[%clk 0:00:26]}  Re8 {[%clk 0:00:04]} 28. Qd4 {[%clk 0:00:25]}  Qf6 {[%clk 0:00:04]} 29. Qd1 {[%clk 0:00:24]}  Kg7 {[%clk 0:00:04]} 30. Rd6 {[%clk 0:00:23]}  Re6 {[%clk 0:00:04]} 31. Rxe6 {[%clk 0:00:22]}  Qxe6 {[%clk 0:00:05]} 32. Nd5 {[%clk 0:00:22]}  Qd6 {[%clk 0:00:04]} 33. Qd4 {[%clk 0:00:22]}  f6 {[%clk 0:00:04]} 34. Qxb6 {[%clk 0:00:21]}  Qxb6 {[%clk 0:00:04]} 35. Nxb6 {[%clk 0:00:20]}  Kf7 {[%clk 0:00:05]} 36. b4 {[%clk 0:00:20]}  Ke6 {[%clk 0:00:05]} 37. Kg1 {[%clk 0:00:19]}  Kd6 {[%clk 0:00:02]} 38. Kf2 {[%clk 0:00:18]}  Nd3+ {[%clk 0:00:02]} 39. Ke3 {[%clk 0:00:17]}  Nxb4 {[%clk 0:00:03]} 40. Kd4 {[%clk 0:00:17]}  Nc6+ {[%clk 0:00:04]} 41. Kc4 {[%clk 0:00:17]}  Ne5+ {[%clk 0:00:05]} 42. Kd4 {[%clk 0:00:17]}  Nf7 {[%clk 0:00:03]} 43. Nc4+ {[%clk 0:00:16]}  Ke6 {[%clk 0:00:03]} 44. a5 {[%clk 0:00:14]}  Nd6 {[%clk 0:00:02]} 45. Nb6 {[%clk 0:00:09]}  f5 {[%clk 0:00:02]} 46. exf5+ {[%clk 0:00:08]}  Nxf5+ {[%clk 0:00:03]} 47. Kc5 {[%clk 0:00:07]}  Ne3 {[%clk 0:00:03]} 48. Na4 {[%clk 0:00:05]}  Nxg2 {[%clk 0:00:03]} 49. Kb6 {[%clk 0:00:03]}  Nf4 {[%clk 0:00:04]} 50. Kxa6 {[%clk 0:00:01]}  Nd5 {[%clk 0:00:04]} 51. Kb7 {[%clk 0:00:01]}  Nb4 {[%clk 0:00:03]} 0-1


[Site "https://www.chess.com"]

[Event "Titled Tuesday Blitz April 05 Early 2022"]
[White "Pischal, Yulia"]
[Black "Maung, Maung Kyaw Zaw Hein"]
[WhiteFideId "14102390"]
[BlackFideId "13001698"]
[WhiteElo "1931"]
[BlackElo "1785"]
[Result "1-0"]
[Round "02"]
[TimeControl "180+1"]
[Date "2022.04.05"]
[WhiteClock "0:00:57"]
[BlackClock "0:00:20"]

1. e4 {[%clk 0:03:00]}  c6 {[%clk 0:02:59]} 2. d3 {[%clk 0:03:00]}  d5 {[%clk 0:03:00]} 3. Nd2 {[%clk 0:03:00]}  e5 {[%clk 0:03:00]} 4. Ngf3 {[%clk 0:03:00]}  Bd6 {[%clk 0:03:00]} 5. g3 {[%clk 0:03:01]}  Nf6 {[%clk 0:03:01]} 6. Bg2 {[%clk 0:03:01]}  O-O {[%clk 0:03:01]} 7. O-O {[%clk 0:03:01]}  Nbd7 {[%clk 0:03:01]} 8. Re1 {[%clk 0:03:01]}  Qc7 {[%clk 0:02:57]} 9. c3 {[%clk 0:03:01]}  Re8 {[%clk 0:02:55]} 10. Qc2 {[%clk 0:03:01]}  Nc5 {[%clk 0:02:54]} 11. a4 {[%clk 0:03:00]}  a5 {[%clk 0:02:53]} 12. h4 {[%clk 0:02:48]}  b6 {[%clk 0:02:49]} 13. Nh2 {[%clk 0:02:43]}  Ba6 {[%clk 0:02:46]} 14. Bf1 {[%clk 0:02:43]}  dxe4 {[%clk 0:02:28]} 15. Nxe4 {[%clk 0:02:42]}  Nfxe4 {[%clk 0:02:25]} 16. dxe4 {[%clk 0:02:42]}  Bxf1 {[%clk 0:02:25]} 17. Nxf1 {[%clk 0:02:41]}  Rad8 {[%clk 0:02:25]} 18. Ne3 {[%clk 0:02:41]}  Bf8 {[%clk 0:02:20]} 19. Nf5 {[%clk 0:02:38]}  g6 {[%clk 0:02:17]} 20. Nh6+ {[%clk 0:02:35]}  Bxh6 {[%clk 0:02:16]} 21. Bxh6 {[%clk 0:02:34]}  Qd7 {[%clk 0:02:15]} 22. Bg5 {[%clk 0:02:28]}  Qd3 {[%clk 0:02:00]} 23. Qc1 {[%clk 0:02:16]}  Rd6 {[%clk 0:01:32]} 24. Qe3 {[%clk 0:01:54]}  Qxe3 {[%clk 0:01:25]} 25. Bxe3 {[%clk 0:01:52]}  Red8 {[%clk 0:01:12]} 26. b4 {[%clk 0:01:41]}  Nd7 {[%clk 0:00:59]} 27. Red1 {[%clk 0:01:31]}  Nf6 {[%clk 0:00:56]} 28. Rxd6 {[%clk 0:01:29]}  Rxd6 {[%clk 0:00:57]} 29. Bxb6 {[%clk 0:01:29]}  axb4 {[%clk 0:00:51]} 30. cxb4 {[%clk 0:01:26]}  Nxe4 {[%clk 0:00:44]} 31. a5 {[%clk 0:01:21]}  Nc3 {[%clk 0:00:41]} 32. a6 {[%clk 0:01:18]}  Nb5 {[%clk 0:00:41]} 33. a7 {[%clk 0:01:17]}  Nxa7 {[%clk 0:00:41]} 34. Rxa7 {[%clk 0:01:15]}  f5 {[%clk 0:00:38]} 35. Bc5 {[%clk 0:01:12]}  Re6 {[%clk 0:00:37]} 36. Rd7 {[%clk 0:01:08]}  Re8 {[%clk 0:00:30]} 37. Kg2 {[%clk 0:01:06]}  Rc8 {[%clk 0:00:29]} 38. Kf3 {[%clk 0:01:04]}  h6 {[%clk 0:00:28]} 39. Ke3 {[%clk 0:01:03]}  g5 {[%clk 0:00:23]} 40. hxg5 {[%clk 0:01:01]}  hxg5 {[%clk 0:00:23]} 41. Re7 {[%clk 0:01:02]}  e4 {[%clk 0:00:20]} 42. Re5 {[%clk 0:00:57]} 1-0


[Site "https://www.chess.com"]